[Event "Titled Tuesday Blitz October 11 Early 2022"]
[White "Tristan, Leonardo"]
[Black "Stribuk, Artiom"]
[WhiteFideId "113816"]
[BlackFideId "13515659"]
[WhiteElo "2446"]
[BlackElo "2279"]
[Result "1-0"]
[Round "06"]
[TimeControl "180+1"]
[Date "2022.10.11"]
[WhiteClock "0:00:15"]
[BlackClock "0:00:04"]

1. d4 {[%clk 0:03:00]}  Nf6 {[%clk 0:02:54]} 2. Nf3 {[%clk 0:03:01]}  g6 {[%clk 0:02:54]} 3. Bf4 {[%clk 0:03:01]}  Bg7 {[%clk 0:02:54]} 4. e3 {[%clk 0:03:02]}  O-O {[%clk 0:02:53]} 5. Be2 {[%clk 0:03:03]}  d6 {[%clk 0:02:52]} 6. O-O {[%clk 0:03:03]}  Nh5 {[%clk 0:02:52]} 7. Bg5 {[%clk 0:03:03]}  h6 {[%clk 0:02:50]} 8. Bh4 {[%clk 0:03:03]}  g5 {[%clk 0:02:51]} 9. Nfd2 {[%clk 0:03:03]}  Nf4 {[%clk 0:02:48]} 10. exf4 {[%clk 0:03:03]}  gxh4 {[%clk 0:02:48]} 11. c3 {[%clk 0:03:03]}  c5 {[%clk 0:02:39]} 12. d5 {[%clk 0:03:02]}  e6 {[%clk 0:02:15]} 13. Nc4 {[%clk 0:03:02]}  Qf6 {[%clk 0:01:34]} 14. Nxd6 {[%clk 0:02:54]}  Qxf4 {[%clk 0:01:31]} 15. Nxc8 {[%clk 0:02:54]}  Rxc8 {[%clk 0:01:32]} 16. dxe6 {[%clk 0:02:55]}  fxe6 {[%clk 0:01:32]} 17. Qb3 {[%clk 0:02:46]}  Nc6 {[%clk 0:01:30]} 18. Qxe6+ {[%clk 0:02:46]}  Kh8 {[%clk 0:01:30]} 19. Qg4 {[%clk 0:02:42]}  Qxg4 {[%clk 0:01:21]} 20. Bxg4 {[%clk 0:02:42]}  Rd8 {[%clk 0:01:22]} 21. Na3 {[%clk 0:02:40]}  Ne5 {[%clk 0:01:20]} 22. Bf3 {[%clk 0:02:30]}  Nxf3+ {[%clk 0:01:03]} 23. gxf3 {[%clk 0:02:31]}  Rg8 {[%clk 0:01:04]} 24. Kh1 {[%clk 0:02:29]}  Raf8 {[%clk 0:01:04]} 25. Rae1 {[%clk 0:02:19]}  Rxf3 {[%clk 0:01:04]} 26. Re4 {[%clk 0:02:19]}  h3 {[%clk 0:01:04]} 27. Rg4 {[%clk 0:02:19]}  Rgf8 {[%clk 0:00:49]} 28. Kg1 {[%clk 0:02:18]}  a6 {[%clk 0:00:45]} 29. Nc4 {[%clk 0:02:18]}  b5 {[%clk 0:00:45]} 30. Nd2 {[%clk 0:02:15]}  Rd3 {[%clk 0:00:44]} 31. Ne4 {[%clk 0:02:15]}  c4 {[%clk 0:00:44]} 32. Rg3 {[%clk 0:02:15]}  Rfd8 {[%clk 0:00:38]} 33. f4 {[%clk 0:02:06]}  Re8 {[%clk 0:00:35]} 34. Re1 {[%clk 0:01:38]}  b4 {[%clk 0:00:34]} 35. Kf2 {[%clk 0:01:20]}  bxc3 {[%clk 0:00:34]} 36. bxc3 {[%clk 0:01:17]}  Rxg3 {[%clk 0:00:26]} 37. hxg3 {[%clk 0:01:15]}  Bxc3 {[%clk 0:00:24]} 38. Re2 {[%clk 0:01:08]}  Bd4+ {[%clk 0:00:24]} 39. Kf3 {[%clk 0:01:09]}  Rc8 {[%clk 0:00:18]} 40. g4 {[%clk 0:01:08]}  c3 {[%clk 0:00:18]} 41. Rc2 {[%clk 0:01:09]}  h2 {[%clk 0:00:12]} 42. Kg2 {[%clk 0:01:05]}  Re8 {[%clk 0:00:12]} 43. Ng3 {[%clk 0:01:05]}  Re3 {[%clk 0:00:11]} 44. Kxh2 {[%clk 0:01:04]}  Rf3 {[%clk 0:00:11]} 45. Ne2 {[%clk 0:00:39]}  Bf6 {[%clk 0:00:08]} 46. Kg2 {[%clk 0:00:39]}  Rd3 {[%clk 0:00:08]} 47. Kf1 {[%clk 0:00:30]}  Rd2 {[%clk 0:00:08]} 48. Rc1 {[%clk 0:00:30]}  Rxa2 {[%clk 0:00:08]} 49. Nxc3 {[%clk 0:00:28]}  Bxc3 {[%clk 0:00:05]} 50. Rxc3 {[%clk 0:00:29]}  Ra4 {[%clk 0:00:06]} 51. Rf3 {[%clk 0:00:29]}  Kg7 {[%clk 0:00:06]} 52. Kg2 {[%clk 0:00:30]}  Rb4 {[%clk 0:00:06]} 53. Kg3 {[%clk 0:00:30]}  a5 {[%clk 0:00:07]} 54. Rc3 {[%clk 0:00:31]}  a4 {[%clk 0:00:07]} 55. Rc7+ {[%clk 0:00:31]}  Kg6 {[%clk 0:00:08]} 56. Ra7 {[%clk 0:00:31]}  Rb3+ {[%clk 0:00:06]} 57. Kh4 {[%clk 0:00:31]}  a3 {[%clk 0:00:07]} 58. f5+ {[%clk 0:00:31]}  Kf6 {[%clk 0:00:08]} 59. Ra6+ {[%clk 0:00:30]}  Kg7 {[%clk 0:00:08]} 60. Rc6 {[%clk 0:00:18]}  Rf3 {[%clk 0:00:08]} 61. Rc7+ {[%clk 0:00:15]}  Kf6 {[%clk 0:00:08]} 62. Rh7 {[%clk 0:00:15]}  a2 {[%clk 0:00:07]} 63. Rxh6+ {[%clk 0:00:16]}  Ke5 {[%clk 0:00:07]} 64. Ra6 {[%clk 0:00:16]}  Rf2 {[%clk 0:00:08]} 65. Kg5 {[%clk 0:00:16]}  Kd5 {[%clk 0:00:05]} 66. f6 {[%clk 0:00:15]}  Kc5 {[%clk 0:00:01]} 67. Kg6 {[%clk 0:00:15]}  Kb5 {[%clk 0:00:02]} 68. Ra8 {[%clk 0:00:15]}  Kb4 {[%clk 0:00:02]} 69. g5 {[%clk 0:00:15]}  Kb3 {[%clk 0:00:03]} 70. f7 {[%clk 0:00:15]}  Kb2 {[%clk 0:00:04]} 71. Kg7 {[%clk 0:00:15]} 1-0


[Site "https://www.chess.com"]

[Event "Titled Tuesday Blitz October 11 Early 2022"]
[White "Turutin, Alexander"]
[Black "Molina, Roberto Junio Brito"]
[WhiteFideId "4180623"]
[BlackFideId "2109450"]
[WhiteElo "2402"]
[BlackElo "2388"]
[Result "0-1"]
[Round "06"]
[TimeControl "180+1"]
[Date "2022.10.12"]
[WhiteClock "0:00:41"]
[BlackClock "0:02:32"]

1. e4 {[%clk 0:02:59]}  c6 {[%clk 0:02:59]} 2. Nf3 {[%clk 0:02:52]}  d5 {[%clk 0:03:00]} 3. Nc3 {[%clk 0:02:52]}  dxe4 {[%clk 0:03:01]} 4. Nxe4 {[%clk 0:02:52]}  Bg4 {[%clk 0:03:00]} 5. h3 {[%clk 0:02:43]}  Bxf3 {[%clk 0:03:00]} 6. Qxf3 {[%clk 0:02:43]}  Nd7 {[%clk 0:03:01]} 7. d4 {[%clk 0:02:41]}  Ndf6 {[%clk 0:03:01]} 8. c3 {[%clk 0:02:34]}  Nxe4 {[%clk 0:03:01]} 9. Qxe4 {[%clk 0:02:35]}  Nf6 {[%clk 0:03:02]} 10. Qf3 {[%clk 0:02:28]}  Qd5 {[%clk 0:03:03]} 11. Be2 {[%clk 0:02:27]}  e6 {[%clk 0:03:03]} 12. O-O {[%clk 0:02:26]}  Bd6 {[%clk 0:03:02]} 13. Rd1 {[%clk 0:02:21]}  Qxf3 {[%clk 0:02:59]} 14. Bxf3 {[%clk 0:02:21]}  O-O-O {[%clk 0:03:00]} 15. Re1 {[%clk 0:02:04]}  Nd5 {[%clk 0:02:59]} 16. g3 {[%clk 0:01:53]}  h5 {[%clk 0:02:57]} 17. h4 {[%clk 0:01:53]}  g6 {[%clk 0:02:57]} 18. Bg5 {[%clk 0:01:51]}  Rd7 {[%clk 0:02:55]} 19. Rad1 {[%clk 0:01:32]}  Be7 {[%clk 0:02:52]} 20. Bc1 {[%clk 0:01:32]}  Bf8 {[%clk 0:02:49]} 21. Bg5 {[%clk 0:01:25]}  Bh6 {[%clk 0:02:46]} 22. Bxh6 {[%clk 0:01:24]}  Rxh6 {[%clk 0:02:46]} 23. c4 {[%clk 0:01:14]}  Nb6 {[%clk 0:02:43]} 24. b3 {[%clk 0:01:14]}  Rh8 {[%clk 0:02:42]} 25. Rd2 {[%clk 0:00:41]}  Rhd8 {[%clk 0:02:41]} 26. Red1 {[%clk 0:00:42]}  c5 {[%clk 0:02:34]} 27. d5 {[%clk 0:00:42]}  exd5 {[%clk 0:02:34]} 28. cxd5 {[%clk 0:00:43]}  Kc7 {[%clk 0:02:33]} 29. g4 {[%clk 0:00:41]}  hxg4 {[%clk 0:02:32]} 0-1


[Site "https://www.chess.com"]

[Event "Titled Tuesday Blitz October 11 Early 2022"]
[White "Urazayev, Arystanbek"]
[Black "Machidon, Cristi"]
[WhiteFideId "13709810"]
[BlackFideId "13904590"]
[WhiteElo "2441"]
[BlackElo "2312"]
[Result "1-0"]
[Round "06"]
[TimeControl "180+1"]
[Date "2022.10.11"]
[WhiteClock "0:01:40"]
[BlackClock "0:00:10"]

1. d4 {[%clk 0:03:00]}  Nf6 {[%clk 0:02:59]} 2. c4 {[%clk 0:03:01]}  e6 {[%clk 0:03:00]} 3. Nc3 {[%clk 0:03:02]}  Bb4 {[%clk 0:03:00]} 4. e3 {[%clk 0:03:02]}  O-O {[%clk 0:02:59]} 5. Bd3 {[%clk 0:03:03]}  c5 {[%clk 0:02:59]} 6. Ne2 {[%clk 0:03:02]}  cxd4 {[%clk 0:02:58]} 7. exd4 {[%clk 0:03:03]}  d5 {[%clk 0:02:58]} 8. cxd5 {[%clk 0:03:04]}  exd5 {[%clk 0:02:57]} 9. O-O {[%clk 0:03:04]}  h6 {[%clk 0:02:53]} 10. Bf4 {[%clk 0:02:58]}  Nc6 {[%clk 0:02:53]} 11. Rc1 {[%clk 0:02:58]}  Be6 {[%clk 0:02:49]} 12. Qd2 {[%clk 0:02:58]}  Ne4 {[%clk 0:02:47]} 13. Qe3 {[%clk 0:02:58]}  Nxc3 {[%clk 0:02:33]} 14. Nxc3 {[%clk 0:02:56]}  Re8 {[%clk 0:02:32]} 15. Qg3 {[%clk 0:02:50]}  Qf6 {[%clk 0:02:31]} 16. Nb5 {[%clk 0:02:51]}  Rac8 {[%clk 0:02:02]} 17. h4 {[%clk 0:02:49]}  a6 {[%clk 0:01:58]} 18. Rxc6 {[%clk 0:02:46]}  bxc6 {[%clk 0:01:26]} 19. Be5 {[%clk 0:02:45]}  Qxe5 {[%clk 0:01:26]} 20. Qxe5 {[%clk 0:02:42]}  cxb5 {[%clk 0:01:26]} 21. Qf4 {[%clk 0:02:36]}  Rc6 {[%clk 0:01:22]} 22. Rc1 {[%clk 0:02:33]}  Bd6 {[%clk 0:01:21]} 23. Qd2 {[%clk 0:02:32]}  Rec8 {[%clk 0:01:22]} 24. Rxc6 {[%clk 0:02:32]}  Rxc6 {[%clk 0:01:22]} 25. g3 {[%clk 0:02:30]}  Be7 {[%clk 0:01:17]} 26. Qf4 {[%clk 0:02:25]}  Bd6 {[%clk 0:01:15]} 27. Qf3 {[%clk 0:02:22]}  Be7 {[%clk 0:01:06]} 28. Bf5 {[%clk 0:02:18]}  Bf6 {[%clk 0:01:06]} 29. Qf4 {[%clk 0:02:07]}  Bxf5 {[%clk 0:00:56]} 30. Qxf5 {[%clk 0:02:07]}  Rc4 {[%clk 0:00:57]} 31. Qxd5 {[%clk 0:02:04]}  Rxd4 {[%clk 0:00:49]} 32. Qa8+ {[%clk 0:02:03]}  Kh7 {[%clk 0:00:45]} 33. Qxa6 {[%clk 0:02:04]}  Rd2 {[%clk 0:00:45]} 34. Qxb5 {[%clk 0:01:59]}  Rxb2 {[%clk 0:00:35]} 35. Qd3+ {[%clk 0:01:59]}  g6 {[%clk 0:00:34]} 36. a4 {[%clk 0:01:59]}  Kg7 {[%clk 0:00:29]} 37. a5 {[%clk 0:01:57]}  Ra2 {[%clk 0:00:29]} 38. a6 {[%clk 0:01:57]}  h5 {[%clk 0:00:21]} 39. Kg2 {[%clk 0:01:54]}  Be7 {[%clk 0:00:14]} 40. a7 {[%clk 0:01:40]}  Bc5 {[%clk 0:00:10]} 41. Qc3+ {[%clk 0:01:40]}  Kh7 {[%clk 0:00:10]} 42. Qxc5 {[%clk 0:01:40]} 1-0


[Site "https://www.chess.com"]

[Event "Titled Tuesday Blitz October 11 Early 2022"]
[White "Veleshnja, Zino"]
[Black "Pimpalkhare, Vedant"]
[WhiteFideId "4701313"]
[BlackFideId "25048236"]
[WhiteElo "2167"]
[BlackElo "2182"]
[Result "1-0"]
[Round "06"]
[TimeControl "180+1"]
[Date "2022.10.12"]
[WhiteClock "0:00:24"]
[BlackClock "0:01:10"]

1. d4 {[%clk 0:03:00]}  e6 {[%clk 0:03:00]} 2. Bf4 {[%clk 0:02:57]}  c5 {[%clk 0:02:59]} 3. e3 {[%clk 0:02:57]}  cxd4 {[%clk 0:02:59]} 4. exd4 {[%clk 0:02:58]}  Qb6 {[%clk 0:02:59]} 5. b3 {[%clk 0:02:55]}  Nf6 {[%clk 0:02:59]} 6. Nf3 {[%clk 0:02:54]}  d6 {[%clk 0:02:58]} 7. Bd3 {[%clk 0:02:55]}  Be7 {[%clk 0:02:57]} 8. O-O {[%clk 0:02:55]}  O-O {[%clk 0:02:57]} 9. c4 {[%clk 0:02:55]}  Nbd7 {[%clk 0:02:57]} 10. Nc3 {[%clk 0:02:50]}  Re8 {[%clk 0:02:57]} 11. Re1 {[%clk 0:02:50]}  a6 {[%clk 0:02:53]} 12. h3 {[%clk 0:02:50]}  Nf8 {[%clk 0:02:53]} 13. Qc2 {[%clk 0:02:46]}  Ng6 {[%clk 0:02:52]} 14. Bg3 {[%clk 0:02:43]}  Bd7 {[%clk 0:02:50]} 15. Rad1 {[%clk 0:02:37]}  Rac8 {[%clk 0:02:49]} 16. Qd2 {[%clk 0:02:23]}  Bf8 {[%clk 0:02:38]} 17. d5 {[%clk 0:02:03]}  e5 {[%clk 0:02:37]} 18. Qc2 {[%clk 0:01:48]}  Qc7 {[%clk 0:02:26]} 19. Rc1 {[%clk 0:01:43]}  b5 {[%clk 0:02:23]} 20. Ne4 {[%clk 0:01:43]}  Nxe4 {[%clk 0:02:21]} 21. Bxe4 {[%clk 0:01:44]}  bxc4 {[%clk 0:02:21]} 22. bxc4 {[%clk 0:01:42]}  Qa7 {[%clk 0:02:15]} 23. h4 {[%clk 0:01:35]}  Be7 {[%clk 0:02:12]} 24. h5 {[%clk 0:01:35]}  Nf8 {[%clk 0:02:12]} 25. h6 {[%clk 0:01:35]}  g6 {[%clk 0:02:12]} 26. Bh4 {[%clk 0:01:29]}  f5 {[%clk 0:02:11]} 27. Bxe7 {[%clk 0:01:23]}  Rxe7 {[%clk 0:02:11]} 28. Bd3 {[%clk 0:01:08]}  e4 {[%clk 0:02:09]} 29. Ng5 {[%clk 0:01:07]}  exd3 {[%clk 0:02:06]} 30. Rxe7 {[%clk 0:01:06]}  Ne6 {[%clk 0:01:48]} 31. Qc3 {[%clk 0:00:38]}  Nd4 {[%clk 0:01:42]} 32. Rg7+ {[%clk 0:00:37]}  Kf8 {[%clk 0:01:42]} 33. Nxh7+ {[%clk 0:00:37]}  Ke8 {[%clk 0:01:42]} 34. Nf6+ {[%clk 0:00:38]}  Kd8 {[%clk 0:01:41]} 35. Re1 {[%clk 0:00:23]}  Ne2+ {[%clk 0:01:09]} 36. Rxe2 {[%clk 0:00:23]}  dxe2 {[%clk 0:01:10]} 37. h7 {[%clk 0:00:24]} 1-0


[Site "https://www.chess.com"]

[Event "Titled Tuesday Blitz October 11 Early 2022"]
[White "Villamayor, Buenaventura"]
[Black "Ernst, Sipke"]
[WhiteFideId "5200393"]
[BlackFideId "1004689"]
[WhiteElo "2301"]
[BlackElo "2438"]
[Result "1-0"]
[Round "06"]
[TimeControl "180+1"]
[Date "2022.10.12"]
[WhiteClock "0:00:40"]
[BlackClock "0:00:28"]

1. e4 {[%clk 0:02:29]}  e5 {[%clk 0:02:59]} 2. Nf3 {[%clk 0:02:28]}  Nc6 {[%clk 0:02:58]} 3. d4 {[%clk 0:02:29]}  exd4 {[%clk 0:02:58]} 4. Nxd4 {[%clk 0:02:29]}  Nf6 {[%clk 0:02:58]} 5. Nxc6 {[%clk 0:02:30]}  bxc6 {[%clk 0:02:58]} 6. e5 {[%clk 0:02:31]}  Qe7 {[%clk 0:02:59]} 7. Qe2 {[%clk 0:02:31]}  Nd5 {[%clk 0:02:59]} 8. h4 {[%clk 0:02:31]}  Qe6 {[%clk 0:02:58]} 9. c4 {[%clk 0:02:28]}  Nb6 {[%clk 0:02:46]} 10. b3 {[%clk 0:02:26]}  f6 {[%clk 0:02:30]} 11. exf6 {[%clk 0:02:24]}  Qxe2+ {[%clk 0:02:30]} 12. Bxe2 {[%clk 0:02:25]}  gxf6 {[%clk 0:02:30]} 13. Bb2 {[%clk 0:02:22]}  Be7 {[%clk 0:02:24]} 14. Bh5+ {[%clk 0:02:18]}  Kf8 {[%clk 0:02:23]} 15. Nd2 {[%clk 0:02:18]}  d6 {[%clk 0:02:22]} 16. O-O-O {[%clk 0:02:16]}  c5 {[%clk 0:02:16]} 17. Ne4 {[%clk 0:02:09]}  Kg7 {[%clk 0:02:13]} 18. Bf3 {[%clk 0:01:40]}  Rb8 {[%clk 0:02:03]} 19. g4 {[%clk 0:01:40]}  Nd7 {[%clk 0:01:50]} 20. g5 {[%clk 0:01:31]}  Ne5 {[%clk 0:01:45]} 21. gxf6+ {[%clk 0:00:56]}  Bxf6 {[%clk 0:01:46]} 22. Rhg1+ {[%clk 0:00:56]}  Kf7 {[%clk 0:01:45]} 23. Bh5+ {[%clk 0:00:55]}  Ke7 {[%clk 0:01:13]} 24. Nxf6 {[%clk 0:00:55]}  Kxf6 {[%clk 0:01:06]} 25. f4 {[%clk 0:00:55]}  Bf5 {[%clk 0:01:05]} 26. fxe5+ {[%clk 0:00:51]}  dxe5 {[%clk 0:01:05]} 27. Rd5 {[%clk 0:00:49]}  Rhg8 {[%clk 0:00:47]} 28. Bxe5+ {[%clk 0:00:43]}  Ke6 {[%clk 0:00:45]} 29. Re1 {[%clk 0:00:43]}  Rb7 {[%clk 0:00:28]} 30. Bb2+ {[%clk 0:00:40]} 1-0


[Site "https://www.chess.com"]

[Event "Titled Tuesday Blitz October 11 Early 2022"]
[White "Visakh N R"]
[Black "Bacrot, Etienne"]
[WhiteFideId "25012223"]
[BlackFideId "605506"]
[WhiteElo "2466"]
[BlackElo "2666"]
[Result "0-1"]
[Round "06"]
[TimeControl "180+1"]
[Date "2022.10.11"]
[WhiteClock "0:00:29"]
[BlackClock "0:00:07"]

1. Nf3 {[%clk 0:03:00]}  d5 {[%clk 0:03:00]} 2. d4 {[%clk 0:02:59]}  Nf6 {[%clk 0:03:00]} 3. Bf4 {[%clk 0:03:00]}  e6 {[%clk 0:02:58]} 4. e3 {[%clk 0:03:00]}  Bd6 {[%clk 0:02:58]} 5. Nbd2 {[%clk 0:02:56]}  O-O {[%clk 0:02:54]} 6. Bd3 {[%clk 0:02:55]}  c5 {[%clk 0:02:53]} 7. c3 {[%clk 0:02:55]}  Qc7 {[%clk 0:02:52]} 8. Bxd6 {[%clk 0:02:53]}  Qxd6 {[%clk 0:02:52]} 9. O-O {[%clk 0:02:54]}  Nbd7 {[%clk 0:02:45]} 10. Re1 {[%clk 0:02:49]}  e5 {[%clk 0:02:43]} 11. e4 {[%clk 0:02:50]}  cxd4 {[%clk 0:02:39]} 12. cxd4 {[%clk 0:02:50]}  dxe4 {[%clk 0:02:34]} 13. Nxe4 {[%clk 0:02:49]}  Nxe4 {[%clk 0:02:33]} 14. Bxe4 {[%clk 0:02:48]}  exd4 {[%clk 0:02:25]} 15. Qxd4 {[%clk 0:02:46]}  Qxd4 {[%clk 0:02:24]} 16. Nxd4 {[%clk 0:02:47]}  Nc5 {[%clk 0:02:20]} 17. Bf3 {[%clk 0:02:42]}  Bd7 {[%clk 0:02:02]} 18. Red1 {[%clk 0:02:36]}  a5 {[%clk 0:01:36]} 19. Rac1 {[%clk 0:02:35]}  Rac8 {[%clk 0:01:35]} 20. g3 {[%clk 0:02:35]}  b6 {[%clk 0:01:30]} 21. Kg2 {[%clk 0:02:33]}  g6 {[%clk 0:01:27]} 22. Rc3 {[%clk 0:02:33]}  Na4 {[%clk 0:01:19]} 23. Rxc8 {[%clk 0:02:27]}  Rxc8 {[%clk 0:01:18]} 24. Rd2 {[%clk 0:02:24]}  Kf8 {[%clk 0:01:12]} 25. Bd5 {[%clk 0:02:22]}  b5 {[%clk 0:00:56]} 26. Nb3 {[%clk 0:02:16]}  Be8 {[%clk 0:00:39]} 27. Nxa5 {[%clk 0:02:13]}  Rd8 {[%clk 0:00:39]} 28. Rd3 {[%clk 0:01:49]}  Nxb2 {[%clk 0:00:20]} 29. Rb3 {[%clk 0:01:49]}  Rxd5 {[%clk 0:00:14]} 30. Rxb2 {[%clk 0:01:49]}  h5 {[%clk 0:00:12]} 31. f3 {[%clk 0:01:42]}  Ke7 {[%clk 0:00:12]} 32. Kf2 {[%clk 0:01:40]}  Kd6 {[%clk 0:00:12]} 33. Nb3 {[%clk 0:01:40]}  Bd7 {[%clk 0:00:12]} 34. Nd2 {[%clk 0:01:39]}  Rd3 {[%clk 0:00:11]} 35. Ke2 {[%clk 0:01:37]}  Ra3 {[%clk 0:00:10]} 36. Ne4+ {[%clk 0:01:33]}  Kc6 {[%clk 0:00:10]} 37. Rc2+ {[%clk 0:01:27]}  Kb6 {[%clk 0:00:10]} 38. Ng5 {[%clk 0:01:20]}  f6 {[%clk 0:00:10]} 39. Ne4 {[%clk 0:01:19]}  Be6 {[%clk 0:00:10]} 40. Nxf6 {[%clk 0:01:18]}  Bxa2 {[%clk 0:00:10]} 41. Nd7+ {[%clk 0:01:16]}  Ka5 {[%clk 0:00:10]} 42. Ne5 {[%clk 0:01:17]}  Bd5 {[%clk 0:00:08]} 43. Rd2 {[%clk 0:01:15]}  Ra2 {[%clk 0:00:05]} 44. Rxa2+ {[%clk 0:01:11]}  Bxa2 {[%clk 0:00:06]} 45. Nxg6 {[%clk 0:01:11]}  b4 {[%clk 0:00:07]} 46. Kd2 {[%clk 0:01:11]}  Ka4 {[%clk 0:00:07]} 47. Kc1 {[%clk 0:01:11]}  Ka3 {[%clk 0:00:07]} 48. Nf4 {[%clk 0:01:10]}  Bc4 {[%clk 0:00:07]} 49. Ng2 {[%clk 0:00:28]}  b3 {[%clk 0:00:07]} 50. Ne3 {[%clk 0:00:28]}  b2+ {[%clk 0:00:07]} 51. Kc2 {[%clk 0:00:29]}  Bb3+ {[%clk 0:00:07]} 0-1


[Site "https://www.chess.com"]

[Event "Titled Tuesday Blitz October 11 Early 2022"]
[White "Wiegmann, Sascha"]
[Black "Przybylski, Wojciech"]
[WhiteFideId "4682041"]
[BlackFideId "1117599"]
[WhiteElo "2270"]
[BlackElo "2221"]
[Result "0-1"]
[Round "06"]
[TimeControl "180+1"]
[Date "2022.10.12"]
[WhiteClock "0:00:18"]
[BlackClock "0:01:28"]

1. Nf3 {[%clk 0:02:54]}  Nf6 {[%clk 0:02:59]} 2. g3 {[%clk 0:02:54]}  b6 {[%clk 0:02:56]} 3. Bg2 {[%clk 0:02:54]}  Bb7 {[%clk 0:02:56]} 4. O-O {[%clk 0:02:55]}  e6 {[%clk 0:02:54]} 5. d4 {[%clk 0:02:55]}  Be7 {[%clk 0:02:53]} 6. c4 {[%clk 0:02:56]}  O-O {[%clk 0:02:53]} 7. Nc3 {[%clk 0:02:56]}  c5 {[%clk 0:02:52]} 8. d5 {[%clk 0:02:54]}  exd5 {[%clk 0:02:52]} 9. cxd5 {[%clk 0:02:55]}  d6 {[%clk 0:02:52]} 10. Re1 {[%clk 0:02:53]}  Re8 {[%clk 0:02:51]} 11. e4 {[%clk 0:02:53]}  Nbd7 {[%clk 0:02:50]} 12. h3 {[%clk 0:02:49]}  h6 {[%clk 0:02:49]} 13. Bf4 {[%clk 0:02:45]}  Nh5 {[%clk 0:02:47]} 14. Be3 {[%clk 0:02:41]}  Bf8 {[%clk 0:02:46]} 15. a4 {[%clk 0:02:38]}  a6 {[%clk 0:02:44]} 16. Qb3 {[%clk 0:02:30]}  Ne5 {[%clk 0:02:40]} 17. Nxe5 {[%clk 0:02:24]}  dxe5 {[%clk 0:02:39]} 18. Red1 {[%clk 0:02:11]}  Bd6 {[%clk 0:02:37]} 19. Nb1 {[%clk 0:02:04]}  Rb8 {[%clk 0:02:34]} 20. Nd2 {[%clk 0:02:04]}  b5 {[%clk 0:02:33]} 21. axb5 {[%clk 0:01:36]}  axb5 {[%clk 0:02:32]} 22. Qxb5 {[%clk 0:01:34]}  Bxd5 {[%clk 0:02:29]} 23. Qxe8+ {[%clk 0:01:33]}  Qxe8 {[%clk 0:02:27]} 24. exd5 {[%clk 0:01:34]}  f5 {[%clk 0:02:18]} 25. Nc4 {[%clk 0:01:32]}  Rd8 {[%clk 0:01:58]} 26. Nxd6 {[%clk 0:01:28]}  Rxd6 {[%clk 0:01:57]} 27. Bxc5 {[%clk 0:01:29]}  Rd8 {[%clk 0:01:56]} 28. d6 {[%clk 0:01:13]}  e4 {[%clk 0:01:56]} 29. Rd5 {[%clk 0:01:07]}  f4 {[%clk 0:01:49]} 30. g4 {[%clk 0:00:50]}  Nf6 {[%clk 0:01:47]} 31. Rd4 {[%clk 0:00:47]}  f3 {[%clk 0:01:45]} 32. Bf1 {[%clk 0:00:45]}  e3 {[%clk 0:01:45]} 33. Re1 {[%clk 0:00:20]}  e2 {[%clk 0:01:43]} 34. h4 {[%clk 0:00:21]}  Ne4 {[%clk 0:01:34]} 35. Rxe4 {[%clk 0:00:17]}  Qxe4 {[%clk 0:01:31]} 36. Bh3 {[%clk 0:00:18]}  Qc2 {[%clk 0:01:29]} 37. b4 {[%clk 0:00:18]}  Qd1 {[%clk 0:01:28]} 0-1


[Site "https://www.chess.com"]

[Event "Titled Tuesday Blitz October 11 Early 2022"]
[White "Yaniuk, Volodymyr"]
[Black "Gonzalez, Francisco Silva"]
[WhiteFideId "14133083"]
[BlackFideId "1512285"]
[WhiteElo "2141"]
[BlackElo "2159"]
[Result "1-0"]
[Round "06"]
[TimeControl "180+1"]
[Date "2022.10.12"]
[WhiteClock "0:00:16"]
[BlackClock "0:00:55"]

1. c4 {[%clk 0:02:03]}  e6 {[%clk 0:02:54]} 2. g3 {[%clk 0:02:02]}  d5 {[%clk 0:02:53]} 3. Bg2 {[%clk 0:02:03]}  dxc4 {[%clk 0:02:51]} 4. Qa4+ {[%clk 0:02:03]}  Nd7 {[%clk 0:02:50]} 5. Qxc4 {[%clk 0:02:03]}  a6 {[%clk 0:02:50]} 6. Nf3 {[%clk 0:02:03]}  b5 {[%clk 0:02:50]} 7. Qc2 {[%clk 0:02:04]}  Bb7 {[%clk 0:02:50]} 8. d4 {[%clk 0:02:04]}  c5 {[%clk 0:02:50]} 9. O-O {[%clk 0:02:01]}  cxd4 {[%clk 0:02:49]} 10. Rd1 {[%clk 0:01:58]}  Rc8 {[%clk 0:02:47]} 11. Qd2 {[%clk 0:01:49]}  e5 {[%clk 0:02:46]} 12. e3 {[%clk 0:01:48]}  Bxf3 {[%clk 0:02:39]} 13. Bxf3 {[%clk 0:01:47]}  Bc5 {[%clk 0:02:38]} 14. exd4 {[%clk 0:01:45]}  Bxd4 {[%clk 0:02:37]} 15. Qe2 {[%clk 0:01:37]}  Ne7 {[%clk 0:02:37]} 16. Bb7 {[%clk 0:01:29]}  Rxc1 {[%clk 0:02:34]} 17. Rxc1 {[%clk 0:01:28]}  Qb6 {[%clk 0:02:34]} 18. Bg2 {[%clk 0:01:22]}  O-O {[%clk 0:02:33]} 19. Nc3 {[%clk 0:01:22]}  Nf6 {[%clk 0:02:30]} 20. a3 {[%clk 0:01:19]}  Re8 {[%clk 0:02:24]} 21. Ne4 {[%clk 0:01:18]}  Ned5 {[%clk 0:02:18]} 22. Nxf6+ {[%clk 0:01:16]}  Nxf6 {[%clk 0:02:14]} 23. Rc6 {[%clk 0:01:15]}  Qa7 {[%clk 0:02:14]} 24. Rac1 {[%clk 0:01:06]}  Bb6 {[%clk 0:02:10]} 25. Rxf6 {[%clk 0:00:57]}  gxf6 {[%clk 0:02:06]} 26. Be4 {[%clk 0:00:57]}  Rd8 {[%clk 0:01:59]} 27. Kg2 {[%clk 0:00:46]}  Qd7 {[%clk 0:01:51]} 28. Qh5 {[%clk 0:00:43]}  Qd2 {[%clk 0:01:46]} 29. Rc2 {[%clk 0:00:32]}  Qd4 {[%clk 0:01:38]} 30. Qxh7+ {[%clk 0:00:24]}  Kf8 {[%clk 0:01:38]} 31. Qf5 {[%clk 0:00:22]}  Ke7 {[%clk 0:01:37]} 32. h4 {[%clk 0:00:21]}  Rg8 {[%clk 0:01:27]} 33. Rc6 {[%clk 0:00:20]}  Rg6 {[%clk 0:01:20]} 34. Qf3 {[%clk 0:00:18]}  Kd7 {[%clk 0:01:14]} 35. Bxg6 {[%clk 0:00:17]}  fxg6 {[%clk 0:01:12]} 36. Rxf6 {[%clk 0:00:16]}  e4 {[%clk 0:01:11]} 37. Rf7+ {[%clk 0:00:16]}  Ke6 {[%clk 0:01:11]} 38. Qf4 {[%clk 0:00:16]}  e3 {[%clk 0:01:05]} 39. fxe3 {[%clk 0:00:14]}  Qxe3 {[%clk 0:01:02]} 40. Qxe3+ {[%clk 0:00:14]}  Bxe3 {[%clk 0:01:01]} 41. Rc7 {[%clk 0:00:13]}  Bd4 {[%clk 0:01:00]} 42. Rc2 {[%clk 0:00:13]}  a5 {[%clk 0:00:59]} 43. Kf3 {[%clk 0:00:14]}  a4 {[%clk 0:00:59]} 44. g4 {[%clk 0:00:13]}  Kd5 {[%clk 0:00:59]} 45. h5 {[%clk 0:00:13]}  gxh5 {[%clk 0:01:00]} 46. gxh5 {[%clk 0:00:14]}  Bh8 {[%clk 0:00:56]} 47. h6 {[%clk 0:00:14]}  Kd4 {[%clk 0:00:56]} 48. Ke2 {[%clk 0:00:14]}  Ke4 {[%clk 0:00:56]} 49. h7 {[%clk 0:00:13]}  Kf5 {[%clk 0:00:56]} 50. Rc8 {[%clk 0:00:13]}  Bxb2 {[%clk 0:00:56]} 51. h8=Q {[%clk 0:00:14]}  Bxh8 {[%clk 0:00:55]} 52. Rxh8 {[%clk 0:00:15]}  b4 {[%clk 0:00:55]} 53. axb4 {[%clk 0:00:15]}  Ke5 {[%clk 0:00:56]} 54. Rc8 {[%clk 0:00:15]}  Kd4 {[%clk 0:00:55]} 55. Kd2 {[%clk 0:00:15]}  a3 {[%clk 0:00:55]} 56. Kc2 {[%clk 0:00:15]}  a2 {[%clk 0:00:56]} 57. Kb2 {[%clk 0:00:15]}  a1=N {[%clk 0:00:55]} 58. Kxa1 {[%clk 0:00:16]} 1-0


[Site "https://www.chess.com"]